Cogmind - Beta 10.2 @@@ ROGUE MODE // 2022.02.03 @ 16:28:45 Player: Ecllection Result: Self-destructed Performance ------------- Evolutions (1) 500 Regions Visited (2) 400 Robots Destroyed (22) 110 Value Destroyed (557) 557 Prototype IDs (1) 20 Alien Tech Used (0) 0 Bonus (0) 0 TOTAL SCORE: 1587 Bonus ------- None Cogmind --------- Core Integrity 91/400 Matter 300/300 Energy 265/265 System Corruption 2% Temperature Cool (32) Movement Rolling (100) Ox2 Location -9/Materials Parts ------- > --- POWER (2) -------- Ion Engine Improved Ion Engine > --- PROPULSION (2) --- Wheel > --- UTILITY (3) ------ Small Storage Unit Hardened Light Armor Plating > --- WEAPON (2) ------- Improved Medium Laser > --- INVENTORY (6) ---- Ion Engine Hardened Light Armor Plating Peak State ------------ > --- POWER ------------ Ion Engine Improved Ion Engine > --- PROPULSION ------- Light Treads Light Treads > --- UTILITY ---------- Heat Sink Small Storage Unit Hardened Light Armor Plating > --- WEAPON ----------- Particle Gun Particle Gun > --- INVENTORY -------- Ion Engine Ion Engine Hardened Light Armor Plating Particle Gun Particle Gun Improved Medium Laser [Rating: 14] Favorites ----------- Power Ion Engine Engine Ion Engine Propulsion Light Treads Treads Light Treads Leg Aluminum Leg Wheel Wheel Utility Small Storage Unit Device Heat Sink Storage Small Storage Unit Protection Hardened Light Armor Plating Weapon Particle Gun Energy Gun Particle Gun Build | -11 -10 -9 ------- Run | Scr Mat Mat Slots Evolved 2 | . . 2 Power 1 | . . 1 Propulsion . | . . . Utility 1 | . . 1 Weapon . | . . . Parts Attached 19 | 5 6 8 Power 4 | 2 . 2 Engine 4 | 2 . 2 Core . | . . . Reactor . | . . . Propulsion 4 | 2 . 2 Treads 2 | 2 . . Leg 1 | . . 1 Wheel 1 | . . 1 Hover . | . . . Flight . | . . . Utility 4 | 1 2 1 Device 2 | . 1 1 Storage 1 | 1 . . Processor . | . . . Hackware . | . . . Protection 1 | . 1 . Artifact . | . . . Weapon 7 | . 4 3 Energy Gun 7 | . 4 3 Energy Cannon . | . . . Ballistic Gun . | . . . Ballistic Cannon . | . . . Launcher . | . . . Special Weapon . | . . . Impact Weapon . | . . . Slashing Weapon . | . . . Piercing Weapon . | . . . Special Melee Weapon . | . . . Unidentified Prototypes 1 | . . 1 Parts Lost 6 | . 1 5 Power . | . . . Propulsion 3 | . . 3 Utility 1 | . . 1 Weapon 2 | . 1 1 Highest Loss Streak 3 | . 1 3 Average Slot Usage (%) 91 | . 82 97 Engine 18 | . 14 22 Treads 21 | . 28 17 Device 9 | . 8 11 Storage 12 | . 14 11 Protection 6 | . . 11 Energy Gun 20 | . 16 22 Naked Turns . | . . . Heaviest Build 28 | 9 20 28 Greatest Support 40 | 40 40 40 Greatest Overweight (x) 9 | . . 9 Average Overweight (x) . | . . . Largest Inventory Capacity 6 | 6 6 6 Average Capacity 5 | 5 6 6 Most Carried 6 | 2 6 6 Average Carried 3 | 1 2 4 Final Capacity 6 | 6 6 6 Final Carried 6 | 2 6 2 Class Distribution -------------------- 91% | Mutant 8% | Scavenger-Mutant Dominant Class ---------------- Mutant | -10/Materials Mutant | -9/Materials Resources | -11 -10 -9 ----------- Run | Scr Mat Mat Matter Collected 597 | 192 118 287 Remotely . | . . . Salvage Created 719 | . 352 367 Parts 49 | . 25 24 Haulers Intercepted . | . . . Recyclers Shooed . | . . . Parts Field Recycled . | . . . Retrieved Matter . | . . . Parts Self-Destructed . | . . . Prevented . | . . . Kills | -11 -10 -9 ------- Run | Scr Mat Mat Combat Hostiles Destroyed 17 | . 7 10 Melee 1 | . . 1 Guns 16 | . 7 9 Classes Destroyed 5 | . 3 2 Worker 4 | . 1 3 Watcher 1 | . 1 . Swarmer 3 | . . 3 Grunt 13 | . 7 6 Sentry 1 | . . 1 Best Kill Streak 5 | . 4 5 Combat Bots Only 4 | . 4 4 Max Kills in Single Turn 2 | . 2 2 Gunslinging . | . . . Exploded . | . . . Melee 1 | . . 1 Uniques/NPCs Destroyed . | . . . Combat | -11 -10 -9 -------- Run | Scr Mat Mat Damage Taken 1215 | . 349 866 Core 364 | . 55 309 Absorbed by Shields . | . . . Core Remaining (%) 89 | 100 78 . Volleys Fired 62 | . 29 33 Largest 2 | . 2 2 Hottest 130 | . 80 130 Shots Fired 93 | . 36 57 Gun 93 | . 36 57 Cannon . | . . . Launcher . | . . . Special . | . . . Kinetic . | . . . Thermal 72 | . 15 57 Explosive . | . . . Electromagnetic 21 | . 21 . Robot Hit Streak 21 | . 9 21 Robot Miss Streak 4 | . 3 4 Penetration Max . | . . . Secondary Targets . | . . . Shots Hit Robots 64 | . 24 40 Core Hits 28 | . 12 16 Critical Hits . | . . . Critical Kills . | . . . Critical Parts Destroyed . | . . . Melee Attacks . | . . . Impact . | . . . Slashing . | . . . Piercing . | . . . Sneak Attacks . | . . . Combat Hostiles . | . . . Follow-up Attacks . | . . . Damage Inflicted 945 | . 320 625 Guns 896 | . 296 600 Cannons . | . . . Explosions 24 | . 24 . Melee . | . . . Ramming 25 | . . 25 Kinetic . | . . . Thermal 742 | . 142 600 Explosive . | . . . Electromagnetic 178 | . 178 . Impact . | . . . Slashing . | . . . Piercing . | . . . Highest Corruption 2 | . . 2 Average Corruption 2 | . . 2 Corruption Purged . | . . . Effects 4 | . . 4 Message Errors 1 | . . 1 Heat Flow Errors 1 | . . 1 Data Loss (minor) 1 | . . 1 Targeting Errors 1 | . . 1 Overload Shots . | . . . Overflow Damage . | . . . Projectiles . | . . . Explosions . | . . . Melee . | . . . Knockbacks . | . . . Impact . | . . . Kinetic . | . . . Secondary . | . . . Self-Inflicted Damage 8 | . . 8 Shots . | . . . Rammed 5 | . . 5 Targets Rammed 5 | . . 5 Kicked . | . . . Crushed . | . . . Highest Temperature 833 | . 20 833 Average Temperature 323 | . 10 350 Received Heat Transfer 408 | . 186 222 Effects 48 | . . 48 Shutdowns 11 | . . 11 Energy Bleed 4 | . . 4 Interference 8 | . . 8 Matter Decay 5 | . . 5 Short Circuit 3 | . . 3 Damage (minor) 5 | . . 5 Damage (major) 8 | . . 8 Damage (core) 4 | . . 4 Siege Activations . | . . . Robots Corrupted . | . . . Combat Hostiles . | . . . Parts Fried 1 | . 1 . Impact Corruptions . | . . . Robots Melted . | . . . Combat Hostiles . | . . . Parts Melted 2 | . . 2 Heat Transferred 1768 | . 325 1443 Parts Sabotaged . | . . . Parts Stolen . | . . . Parts Stripped . | . . . Power Chain Reactions 1 | . 1 . Missiles Intercepted . | . . . Alert | -11 -10 -9 ------- Run | Scr Mat Mat Peak Influence 262 | . 232 262 Initial 97 | . . 97 Average 124 | . 113 146 Maximum Alert Level 1 | . 1 1 Low Security (%) 77 | 100 87 68 Level 1 22 | . 12 31 Level 2 . | . . . Level 3 . | . . . Level 4 . | . . . Level 5 . | . . . High Security . | . . . Max Security . | . . . Squads Dispatched 6 | . 3 3 Investigation 2 | . 1 1 Extermination . | . . . Reinforcement 4 | . 2 2 Assault . | . . . Garrison . | . . . Intercept . | . . . Construction Impeded . | . . . Haulers Reinforced . | . . . Stealth | -11 -10 -9 --------- Run | Scr Mat Mat Distress Signals 1 | . 1 . Communications Jammed . | . . . Distress Signals . | . . . Times Spotted 36 | . 13 23 Peak Tracking Total 7 | . 3 7 Tactical Retreats 4 | . . 4 Traps | -11 -10 -9 ------- Run | Scr Mat Mat Traps Triggered 3 | . 1 2 Indirectly . | . . . Trap Hack Attempts . | . . . Triggered . | . . . Disarmed . | . . . Reprogrammed . | . . . Reused . | . . . Traps Extracted . | . . . Installed . | . . . Triggered . | . . . Machines | -11 -10 -9 ---------- Run | Scr Mat Mat Machines Disabled 2 | . . 2 Max in Single Turn 1 | . . 1 Machines Sabotaged . | . . . Garrisons Compromised . | . . . Overloaded Fab Kills . | . . . Fab Network Shutdowns . | . . . Hacking | -11 -10 -9 --------- Run | Scr Mat Mat Machines Accessed . | . . . Terminals . | . . . Fabricators . | . . . Repair Stations . | . . . Recycling Units . | . . . Scanalyzers . | . . . Garrison Access . | . . . Total Hacks . | . . . Successful . | . . . Failed . | . . . Catastrophic . | . . . Database Lockouts . | . . . Manual . | . . . Terminals . | . . . Fabricators . | . . . Repair Stations . | . . . Recycling Units . | . . . Scanalyzers . | . . . Garrison Access . | . . . Terminal Hacks . | . . . Fabricator Hacks . | . . . Repair Station Hacks . | . . . Recycling Unit Hacks . | . . . Scanalyzer . | . . . Garrison Access Hacks . | . . . Unauthorized Hacks . | . . . Terminals . | . . . Fabricators . | . . . Repair Stations . | . . . Recycling Units . | . . . Scanalyzers . | . . . Garrison Access . | . . . Data Cores Recovered . | . . . Used . | . . . Hacking Detections . | . . . Full Trace Events . | . . . Feedback Events . | . . . Feedback Blocked . | . . . Robot Schematics Acquired . | . . . Robots Built . | . . . Matter . | . . . Time . | . . . Total Robot Build Rating . | . . . Part Schematics Acquired . | . . . Parts Built . | . . . Matter . | . . . Time . | . . . Total Part Build Rating . | . . . Parts Repaired . | . . . Time . | . . . Parts Recycled . | . . . Recycled Matter . | . . . Retrieved Matter . | . . . Retrieved Components . | . . . Parts Scanalyzed . | . . . Part Schematics Acquired . | . . . Parts Damaged . | . . . Bothacking | -11 -10 -9 ------------ Run | Scr Mat Mat Used RIF Installer . | . . . Robots Hacked . | . . . Non-combat . | . . . Combat . | . . . Robot Hacks Applied . | . . . Relay Couplers Released . | . . . Robots Rewired . | . . . Allies Hacked . | . . . Hacks Repelled . | . . . Allies | -11 -10 -9 -------- Run | Scr Mat Mat Total Allies . | . . . Largest Group . | . . . Highest-Rated Group . | . . . Highest-Rated Ally . | . . . Total Orders . | . . . Ally Attacks . | . . . Total Damage . | . . . Kills . | . . . Allies Corrupted . | . . . Allies Melted . | . . . Intel | -11 -10 -9 ------- Run | Scr Mat Mat Robot Analysis Total . | . . . Derelict Logs Recovered . | . . . Drone Launches . | . . . Drone Recoveries . | . . . Exploration | -11 -10 -9 ------------- Run | Scr Mat Mat Turns Passed 986 | 65 352 569 Spaces Moved 453 | 39 167 247 Core 8 | 7 . 1 Treads 407 | 32 167 208 Legs 6 | . . 6 Wheels 32 | . . 32 Hover . | . . . Flight . | . . . Fastest Speed 50 | 50 160 100 Average Speed 155 | 140 160 154 Slowest Speed 500 | 160 160 500 Overloaded Moves . | . . . Propulsion Burnouts . | . . . Robots Hopped . | . . . Cave-ins Triggered . | . . . Exploration Rate (%) 23 | 3 41 25 Regions Visited 2 Branch Regions . Pre-discovered Areas . | . . . Known Exits Taken . | . . . Unknown Exits Taken 2 | 1 1 . Scrap Searched . | . . . Spaces Dug . | . . . Terrain Destroyed 2 | . 2 . Melee . | . . . Projectile . | . . . AOE 2 | . 2 . Terrain Rammed . | . . . Walls Destroyed . | . . . Machines Disabled . | . . . Actions | -11 -10 -9 --------- Run | Scr Mat Mat Total 640 | 49 216 375 Wait 75 | . 1 74 Move 451 | 38 166 247 Hop . | . . . Pick Up 21 | 6 11 4 Fast Attach . | . . . Attach 12 | 4 4 4 Detach . | . . . Swap 7 | 1 2 4 Drop 7 | . 3 4 Fire 62 | . 29 33 Melee . | . . . Ram 3 | . . 3 Kick . | . . . Crush 2 | . . 2 Escape Stasis . | . . . Rewire . | . . . Trap . | . . . Miscellaneous . | . . . Route ------- -11/Scrapyard -10/Materials -9/Materials History --------- Turn | Location | Event 17 | -11/Scrapyard | Discovered new exit (range 16) 66 | -11/Scrapyard | Entered Materials 316 | -10/Materials | Build established: Mutant 329 | -10/Materials | Discovered new exit (range 14) 418 | -10/Materials | Entered another Materials area 418 | -9/Materials | Evolved 2 slots: Power x1, Utility x1 920 | -9/Materials | Core integrity fell below 50% 987 | -9/Materials | Self-destructed Last Messages --------------- Power failure, Imp. Ion Engine shutdown. Overheating: Wheel damaged (-23). Overheating: Matter decay (-69). Acquired 23 matter. Overheating: Matter decay (-60). Acquired 25 matter. Acquired 3 matter. Acquired 32 matter. Overheating: System interference. Imp. Medium Laser temporarily disabled. Particle Gun temporarily disabled. Particle Gun destroyed. Heat Sink destroyed. Slammed into G-34 Mercenary. G-34 Mercenary destroyed. Destabilizing: Core damaged (-12). Acquired 36 matter. K-01 Serf collects debris. Slammed into Y-45 Defender. Aluminum Leg destroyed. Map ----- +----------------------------------------------------+ | ?????????????????? ^ % %* "T # | | ?????????????????? * %* # | | ???????????????????????######### #######+### # | | ???????????????????????????????# # * % #### ## | | ???????????????????????????????# # = #??# #? | | ???????????????????????????????# # " " " #??# #? | | ???????????????????????????????# # """ """ #??# #? | | ???????????????????????????????# # """ """ #??# #? | | ???????????????????????????????# # """ """ #??# #? | | ?????????????????# ????????????# # """ """ #??# #? | | ?????????????????# ????????????# + #### ## | | ?????????????????# ???????????# ############ | | ?????????????????# ???????#### ############ | | ????????????????## #??????# T | | ????????????????# ####### ######### | | ????????????????# # # | | ???????????? + + ###### | | ????????????????# Ys ########## #????? | | ????????????????# ## #????????# "T" #????? | | ????????????????####???#s #????????# """ #????? | | ???????????????????????# #????????#########????? | | ???????????????????????# !a#?????????????????????? | | ??????????????????????##*% ##????????????????????? | | ??????????????????????# ######???????????????? | | ??????????????????????# % g a #???????????????? | | ??????????????????????# Y@ k +???????????????? | | ??????????????????????# #???????????????? | | ??????????????????????# #### #???????????????? | | ??????????????????????#######????#???????????????? | | ?????????????????????????????????????????????????? | | ?????????????????????????????????????????????????? | | ?????????????????????????????????????????????????? | | ?????????????????????????????????????????????????? | | ?????????????????????????????????????????????????? | | ?????????????????????????????????????????????????? | | ?????????????????????????????????????????????????? | | ?????????????????????????????????????????????????? | | ?????????????????????????????????????????????????? | | ?????????????????????????????????????????????????? | | ?????????????????????????????????????????????????? | | ?????????????????????????????????????????????????? | | | | | | | | | | | | | | | | | | | +----------------------------------------------------+ Best States ------------- Heat Dissipation 38 Energy Generation 17 Energy Capacity 415 Matter Stores 300 Matter Capacity 300 Sight Range 16 Terrain Scan Density 10 Armor Coverage 150 Evasion (%) 40 Recoil Reduction 2 Item Schematics ----------------- None Robot Schematics ------------------ None Fabricated ------------ Nothing Alien Tech Used ----------------- None Achievements -------------- None Challenges ------------ None Game ------ Seed PotentialAlertBroadsword Manual? 0 Play Time 00:11:47 Cumulative 15.5 hours Start 2022.02.03 @ 16:13:47 End 2022.02.03 @ 16:28:45 Sessions 1 Manual Loads 0 Difficulty Rogue Special Mode None Game No. 33 Rogue 33 Adventurer 0 Explorer 0 Win Type - Total 0 Types 0/0/0/0/0/0/0/0/0 Lore% 16 Gallery% 20 Achievement% 17 Wizard Run 0 Options --------- ASCII 0 Keyboard 0 Movement Mouse Keybinds 0 Fullscreen 1 Font 18/SmallcapsGlow Map View 76x50 Tactical HUD 0 Map Filters NONE Filters NONE Steam 1 RUN: 989559d8-c03b-49fd-b02a-e86595a66116